Cogmind - Beta 9.4 @@@ ROGUE MODE // 2020.02.08 @ 13:46:47 Player: YppY Result: Destroyed by S-10 Pest with Light Assault Rifle Performance ------------- Evolutions (0) 0 Regions Visited (2) 400 Robots Destroyed (16) 80 Value Destroyed (197) 197 Prototype IDs (0) 0 Alien Tech Used (0) 0 Bonus (0) 0 TOTAL SCORE: 677 Bonus ------- None Cogmind --------- Core Integrity 0/250 Matter 290/300 Energy 100/100 System Corruption 4% Temperature Cool (19) Movement Core (50) Location -10/Mines Parts ------- > --- POWER (1) -------- (None) > --- PROPULSION (2) --- (None) > --- UTILITY (2) ------ Hacking Suite > --- WEAPON (2) ------- Makeshift Hammer > --- INVENTORY (4) ---- Light Ion Engine Utility Shielding Small Laser Peak State ------------ > --- POWER ------------ Light Nuclear Core > --- PROPULSION ------- Hover Unit Hover Unit > --- UTILITY ---------- Improved Heat Sink Hacking Suite > --- WEAPON ----------- Small Laser Small Laser > --- INVENTORY -------- Light Ion Engine Utility Shielding [Rating: 13] Favorites ----------- Power Light Ion Engine Engine Light Ion Engine Power Core Light Nuclear Core Propulsion Aluminum Leg Leg Aluminum Leg Hover Unit Hover Unit Utility Hacking Suite Device Improved Heat Sink Storage Small Storage Unit Hackware Hacking Suite Protection Utility Shielding Weapon EM Pulse Gun Energy Gun EM Pulse Gun Ballistic Gun Assault Rifle Launcher Grenade Launcher Impact Weapon Makeshift Hammer Build | -11 -10 -10 ------- Run | Scr Mat Min Slots Evolved . | . . . Power . | . . . Propulsion . | . . . Utility . | . . . Weapon . | . . . Parts Attached 16 | 6 3 7 Power 2 | 1 . 1 Engine 1 | 1 . . Core 1 | . . 1 Reactor . | . . . Propulsion 4 | 2 2 . Treads . | . . . Leg 2 | 2 . . Wheel . | . . . Hover 2 | . 2 . Flight . | . . . Utility 4 | 1 1 2 Device 1 | . . 1 Storage 1 | 1 . . Processor . | . . . Hackware 1 | . 1 . Protection 1 | . . 1 Artifact . | . . . Weapon 6 | 2 . 4 Energy Gun 3 | 1 . 2 Energy Cannon . | . . . Ballistic Gun 1 | 1 . . Ballistic Cannon . | . . . Launcher 1 | . . 1 Special Weapon . | . . . Impact Weapon 1 | . . 1 Slashing Weapon . | . . . Piercing Weapon . | . . . Special Melee Weapon . | . . . Unidentified Prototypes . | . . . Parts Lost 6 | . . 6 Power 1 | . . 1 Propulsion 2 | . . 2 Utility 1 | . . 1 Weapon 2 | . . 2 Highest Loss Streak 6 | . . 6 Average Slot Usage (%) 85 | . 95 71 Engine 10 | . 14 4 Core 1 | . . 4 Leg 14 | . 24 . Hover 9 | . 3 17 Device 2 | . . 5 Storage 9 | . 14 3 Hackware 11 | . 9 14 Energy Gun 13 | . 14 12 Ballistic Gun 9 | . 14 3 Naked Turns . | . . . Heaviest Build 11 | 11 11 11 Greatest Support 20 | 20 20 12 Greatest Overweight (x) . | . . . Average Overweight (x) . | . . . Largest Inventory Capacity 6 | 6 6 6 Average Capacity 5 | 5 6 4 Most Carried 5 | 4 4 5 Average Carried 2 | 1 2 3 Final Capacity 6 | 6 6 4 Final Carried 4 | 1 4 3 Class Distribution -------------------- 90% | Mutant 9% | Scavenger-Mutant Dominant Class ---------------- Mutant | -10/Materials Mutant | -10/Mines Resources | -11 -10 -10 ----------- Run | Scr Mat Min Matter Collected 405 | 190 128 87 Remotely . | . . . Salvage Created 247 | . 143 104 Parts 16 | . 9 7 Haulers Intercepted . | . . . Recyclers Shooed . | . . . Parts Field Recycled . | . . . Retrieved Matter . | . . . Parts Self-Destructed . | . . . Prevented . | . . . Kills | -11 -10 -10 ------- Run | Scr Mat Min Combat Hostiles Destroyed 13 | . 2 11 Guns 4 | . 2 2 AOE 9 | . . 9 Classes Destroyed 4 | . 3 1 Operator 2 | . 2 . Watcher 1 | . 1 . Grunt 4 | . 2 2 Assembled 9 | . . 9 Best Kill Streak 9 | . 3 9 Combat Bots Only 9 | . 1 9 Max Kills in Single Turn 4 | . 1 4 Gunslinging . | . . . Exploded 4 | . . 4 Melee . | . . . Uniques/NPCs Destroyed . | . . . Combat | -11 -10 -10 -------- Run | Scr Mat Min Damage Taken 583 | . 10 573 Core 251 | . . 251 Absorbed by Shields . | . . . Core Remaining (%) 100 | 100 . . Volleys Fired 20 | . 10 10 Largest 2 | . 2 2 Hottest 70 | . 60 70 Shots Fired 40 | . 20 20 Gun 36 | . 20 16 Cannon . | . . . Launcher 4 | . . 4 Special . | . . . Kinetic 16 | . 10 6 Thermal 4 | . . 4 Explosive 4 | . . 4 Electromagnetic 16 | . 10 6 Robot Hit Streak 5 | . 3 5 Robot Miss Streak 3 | . 3 2 Penetration Max . | . . . Secondary Targets . | . . . Shots Hit Robots 22 | . 10 12 Core Hits 34 | . 7 27 Critical Hits . | . . . Critical Kills . | . . . Critical Parts Destroyed . | . . . Melee Attacks 1 | . . 1 Impact 1 | . . 1 Slashing . | . . . Piercing . | . . . Sneak Attacks . | . . . Combat Hostiles . | . . . Follow-up Attacks . | . . . Damage Inflicted 863 | . 179 684 Guns 278 | . 179 99 Cannons . | . . . Explosions 544 | . . 544 Melee 26 | . . 26 Ramming 15 | . . 15 Kinetic 80 | . 53 27 Thermal 32 | . . 32 Explosive 544 | . . 544 Electromagnetic 166 | . 126 40 Impact 26 | . . 26 Slashing . | . . . Piercing . | . . . Highest Corruption 4 | . 1 4 Average Corruption 1 | . 1 2 Corruption Purged . | . . . Effects 2 | . 1 1 Heat Flow Errors 1 | . . 1 Targeting Errors 1 | . 1 . Overload Shots . | . . . Overflow Damage 1 | . . 1 Projectiles . | . . . Explosions 1 | . . 1 Melee . | . . . Knockbacks . | . . . Impact . | . . . Kinetic . | . . . Secondary . | . . . Self-Inflicted Damage 59 | . . 59 Shots 2 | . . 2 Rammed 3 | . . 3 Targets Rammed 3 | . . 3 Kicked . | . . . Crushed . | . . . Highest Temperature 113 | . 6 113 Average Temperature 36 | . 6 43 Received Heat Transfer 45 | . 6 39 Siege Activations . | . . . Robots Corrupted . | . . . Combat Hostiles . | . . . Parts Fried . | . . . Impact Corruptions . | . . . Robots Melted . | . . . Combat Hostiles . | . . . Parts Melted . | . . . Heat Transferred 75 | . . 75 Parts Sabotaged . | . . . Parts Stolen . | . . . Parts Stripped . | . . . Power Chain Reactions . | . . . Missiles Intercepted . | . . . Alert | -11 -10 -10 ------- Run | Scr Mat Min Peak Influence 117 | . 97 117 Average Influence 47 | . 41 73 Maximum Alert Level . | . . . Low Security (%) 100 | 100 100 100 Level 1 . | . . . Level 2 . | . . . Level 3 . | . . . Level 4 . | . . . Level 5 . | . . . High Security . | . . . Max Security . | . . . Squads Dispatched 2 | . 2 . Investigation 1 | . 1 . Extermination . | . . . Reinforcement 1 | . 1 . Assault . | . . . Garrison . | . . . Intercept . | . . . Construction Impeded . | . . . Haulers Reinforced . | . . . Stealth | -11 -10 -10 --------- Run | Scr Mat Min Distress Signals 1 | . 1 . Communications Jammed . | . . . Distress Signals . | . . . Times Spotted 34 | . 8 26 Peak Tracking Total 18 | . 2 18 Tactical Retreats 3 | . . 3 Traps | -11 -10 -10 ------- Run | Scr Mat Min Traps Triggered 1 | . 1 . Indirectly . | . . . Trap Hack Attempts . | . . . Triggered . | . . . Disarmed . | . . . Reprogrammed . | . . . Reused . | . . . Traps Extracted . | . . . Installed . | . . . Triggered . | . . . Machines | -11 -10 -10 ---------- Run | Scr Mat Min Machines Disabled . | . . . Max in Single Turn . | . . . Machines Sabotaged . | . . . Garrisons Compromised . | . . . Overloaded Fab Kills . | . . . Fab Network Shutdowns . | . . . Hacking | -11 -10 -10 --------- Run | Scr Mat Min Machines Accessed 2 | . 2 . Terminals 2 | . 2 . Fabricators . | . . . Repair Stations . | . . . Recycling Units . | . . . Scanalyzers . | . . . Garrison Access . | . . . Total Hacks 6 | . 6 . Successful 4 | . 4 . Failed 2 | . 2 . Catastrophic . | . . . Database Lockouts . | . . . Manual 4 | . 4 . Terminals 6 | . 6 . Fabricators . | . . . Repair Stations . | . . . Recycling Units . | . . . Scanalyzers . | . . . Garrison Access . | . . . Terminal Hacks 2 | . 2 . Locate Traps 1 | . 1 . Recall Reinforcements 1 | . 1 . Fabricator Hacks . | . . . Repair Station Hacks . | . . . Recycling Unit Hacks . | . . . Scanalyzer . | . . . Garrison Access Hacks . | . . . Unauthorized Hacks 6 | . 6 . Terminals 2 | . 2 . Track 1 | . 1 . Botnet 1 | . 1 . Fabricators . | . . . Repair Stations . | . . . Recycling Units . | . . . Scanalyzers . | . . . Garrison Access . | . . . Data Cores Recovered 2 | . 2 . Used 2 | . 2 . Hacking Detections 2 | . 2 . Full Trace Events 1 | . 1 . Feedback Events . | . . . Feedback Blocked . | . . . Robot Schematics Acquired . | . . . Robots Built . | . . . Matter . | . . . Time . | . . . Total Robot Build Rating . | . . . Part Schematics Acquired . | . . . Parts Built . | . . . Matter . | . . . Time . | . . . Total Part Build Rating . | . . . Parts Repaired . | . . . Time . | . . . Parts Recycled . | . . . Recycled Matter . | . . . Retrieved Matter . | . . . Retrieved Components . | . . . Parts Scanalyzed . | . . . Part Schematics Acquired . | . . . Parts Damaged . | . . . Bothacking | -11 -10 -10 ------------ Run | Scr Mat Min Used RIF Installer . | . . . Robots Hacked . | . . . Non-combat . | . . . Combat . | . . . Robot Hacks Applied . | . . . Relay Couplers Released . | . . . Robots Rewired . | . . . Allies Hacked . | . . . Hacks Repelled . | . . . Allies | -11 -10 -10 -------- Run | Scr Mat Min Total Allies . | . . . Largest Group . | . . . Highest-Rated Group . | . . . Highest-Rated Ally . | . . . Total Orders . | . . . Ally Attacks . | . . . Total Damage . | . . . Kills . | . . . Allies Corrupted . | . . . Allies Melted . | . . . Intel | -11 -10 -10 ------- Run | Scr Mat Min Robot Analysis Total . | . . . Derelict Logs Recovered . | . . . Drone Launches . | . . . Drone Recoveries . | . . . Exploration | -11 -10 -10 ------------- Run | Scr Mat Min Turns Passed 421 | 53 222 146 Spaces Moved 367 | 39 150 178 Core 92 | 8 . 84 Treads . | . . . Legs 151 | 31 120 . Wheels . | . . . Hover 124 | . 30 94 Flight . | . . . Fastest Speed 50 | 50 56 50 Average Speed 80 | 105 107 53 Slowest Speed 120 | 120 120 56 Overloaded Moves . | . . . Propulsion Burnouts . | . . . Robots Hopped . | . . . Cave-ins Triggered . | . . . Exploration Rate (%) 21 | 4 29 31 Regions Visited 2 Branch Regions 1 Pre-discovered Areas . | . . . Known Exits Taken . | . . . Unknown Exits Taken 2 | 1 1 . Scrap Searched . | . . . Spaces Dug . | . . . Terrain Destroyed 32 | . . 32 Melee . | . . . Projectile . | . . . AOE 32 | . . 32 Actions | -11 -10 -10 --------- Run | Scr Mat Min Total 449 | 51 190 208 Wait 20 | . 20 . Move 365 | 38 149 178 Hop . | . . . Pick Up 18 | 7 6 5 Fast Attach . | . . . Attach 11 | 6 1 4 Detach . | . . . Swap 5 | . 2 3 Drop 6 | . 2 4 Fire 20 | . 10 10 Melee 1 | . . 1 Ram 3 | . . 3 Kick . | . . . Crush . | . . . Escape Stasis . | . . . Rewire . | . . . Trap . | . . . Miscellaneous . | . . . Route ------- -11/Scrapyard -10/Materials -10/Mines History --------- Turn | Location | Event 9 | -11/Scrapyard | Discovered new exit (range 16) 54 | -11/Scrapyard | Entered Materials 222 | -10/Materials | Discovered new exit (range 16) 276 | -10/Materials | Entered Mines 312 | -10/Mines | Build established: Mutant 347 | -10/Mines | Assisted by bots powering up and referring to "LRC-V3" 356 | -10/Mines | Assembled infested the area 361 | -10/Mines | Assisted by a Guerilla fighting off Assembled 390 | -10/Mines | Core integrity fell below 50% 391 | -10/Mines | Destroyed 9 combat bots 392 | -10/Mines | Core integrity fell below 20% 401 | -10/Mines | A weapon hastily lodged in a ceiling crevice suddenly fell to the ground 420 | -10/Mines | Lost 6 parts (1p2n1u2w) 422 | -10/Mines | Destroyed by S-10 Pest with Light Assault Rifle Last Messages --------------- 00387_ K-01 Serf collects debris. 00389_ Slammed into U-05 Engineer. 00389_ U-05 Engineer destroyed. 00389_ Imp. Heat Sink destroyed. 00390_ The unstable cave ceiling collapses. 00395_ K-01 Serf collects debris. 00396_ The unstable cave ceiling collapses. 00396_ 3L-FN1(h) destroyed. 00397_ The unstable cave ceiling collapses. 00400_ YI-UF0 mumbles something. 00400_ K-01 Serf collects debris. 00401_ The unstable cave ceiling collapses. 00401_ K-01 Serf collects debris. 00401_ A Mak. Hammer hastily lodged in a ceiling crevice suddenly falls to the ground. 00404_ K-01 Serf collects debris. 00404_ Acquired Mak. Hammer. 00405_ K-01 Serf collects debris. 00417_ System corrupted: Heat flow error (+138). 00419_ S-10 Pest: "SECOND INTRUDER APPROACHING. ELIMINATE." Map ----- +----------------------------------------------------+ | ????# =# ##### #???????? | | ???## ## #???# #???????? | | ??## ##### #???# #####???? | | ?## ###???## ##???# #???? | | ?# ###??????## #????##### #???? | | ?# ##?????????# #????????# ##### | | ?## #??????????# #????????# # | | ??## ##?????????# #????????# # | | ???# #?????????? #????????## %% # | | ???# #?????????? #?????????# # | | ???## ##?????????? #????????? # | | ????# #???????????#?????????# | | ????# #????????????????????? | | ????# #????????????????????### | | ???## ##?????????????????????## | | ??## #??????????????????????##### | | ?## #??????????????????????????? | | ?# #??????????????????????????? | | ?# ##??????????????????????????? | | ?# #???????????????????????????? | | ?# #?????????????"?????????????? | | ?# ##???????????""" ""??????????? | | ?# ##?????????? ???????????? | | ?# ##???????? """?????????????? | | ?## #######uss """?????????????? | | ??# @ts #???????????????????? | | ??# #???????????????????? | | ??## ##########???????????????????? | | ???####????????????????????????????? | | ???????????????????????????????????? | | ???????????????????????????????????? | | ???????????????????????????????????? | | ???????????????????????????????????? | | ???????????????????????????????????? | | ???????????????????????????????????? | | ???????????????????????????????????? | | ???????????????????????????????????? | | ???????????????????????????????????? | | ???????????????????????????????????? | | ???????????????????????????????????? | | ???????????????????????????????????? | | ???????????????????????????????????? | | ???????????????????????????????????? | | ???????????????????????????????????? | | ???????????????????????????????????? | | ???????????????????????????????????? | | ???????????????????????????????????? | | | | | | | +----------------------------------------------------+ Best States ------------- Heat Dissipation 39 Energy Generation 14 Energy Capacity 160 Matter Stores 300 Matter Capacity 300 Sight Range 16 Terrain Scan Density 10 Evasion (%) 53 Offensive Hacking 10 Item Schematics ----------------- None Robot Schematics ------------------ None Fabricated ------------ Nothing Alien Tech Used ----------------- None Achievements -------------- None Challenges ------------ None Game ------ Seed AccelerationMasterWell Manual? 0 Play Time 00:08:54 Cumulative 51.1 hours Start 2020.02.08 @ 13:40:39 End 2020.02.08 @ 13:46:47 Sessions 1 Manual Loads 0 Difficulty Rogue Special Mode None Game No. 37 Rogue 37 Adventurer 0 Explorer 0 Win Type - Total 2 Types 1/0/0/1/0/0/0 Lore% 52 Gallery% 55 Achievement% 45 Wizard Run 0 Options --------- ASCII 0 Keyboard 0 Movement Numpad Keybinds 0 Fullscreen 1 Font 18/SmallcapsGlow Map View 76x50 Tactical HUD 1 Map Filters NONE Filters NONE Steam 1 RUN: 0e6b2377-407d-4368-9ed0-caa982256549